fUSD/lending_fUSD_20250530
["ID","MTS","AMOUNT","RATE_DAILY","PERIOD"]
[363170505,1748607062717,-711.78,0.00023013,2]
[363170506,1748607062727,-420.0,0.00023013,2]
[363170507,1748607062737,-1058.99,0.00023013,2]
[363170508,1748607062746,-420.0,0.00023013,2]
[363170509,1748607062756,-420.0,0.00023013,2]
[363170510,1748607062765,-881.85,0.00023013,2]
[363170511,1748607062774,-420.0,0.00023013,2]
[363170512,1748607062784,-420.0,0.00023013,2]
[363170513,1748607062794,-420.0,0.00023013,2]
[363170514,1748607062802,-420.0,0.00023013,2]
[363170515,1748607062812,-501.47,0.00023013,2]
[363170516,1748607062822,-420.0,0.00023013,2]
[363170517,1748607062831,-897.81,0.00023013,2]
[363170518,1748607062840,-424.07,0.00023013,2]
[363170519,1748607062850,-420.0,0.00023013,2]
[363170520,1748607062859,-420.0,0.00023013,2]
[363170521,1748607062868,-475.28,0.00023013,2]
[363170522,1748607062878,-543.28,0.00023013,2]
[363170523,1748607062887,-840.36,0.00023013,2]
[363170524,1748607062896,-420.0,0.00023013,2]
[363170525,1748607062906,-900.0,0.00023013,2]
[363170526,1748607062916,-420.0,0.00023013,2]
[363170527,1748607062927,-420.0,0.00023013,2]
[363170528,1748607062936,-420.0,0.00023013,2]
[363170529,1748607062946,-420.0,0.00023013,2]
[363170530,1748607062955,-1281.34,0.00023013,2]
[363170531,1748607062964,-420.0,0.00023013,2]
[363170532,1748607062974,-420.0,0.00023013,2]
[363170533,1748607062983,-420.0,0.00023013,2]
[363170534,1748607062992,-420.0,0.00023013,2]
[363170535,1748607063001,-617.92,0.00023013,2]
[363170536,1748607063011,-1366.54,0.00023013,2]
[363170537,1748607063020,-420.0,0.00023013,2]
[363170538,1748607063029,-428.201074,0.00023013,2]
[363170539,1748607063039,-420.0,0.00023013,2]
[363170540,1748607063048,-420.0,0.00023013,2]
[363170541,1748607063058,-420.0,0.00023013,2]
[363170542,1748607063067,-496.86,0.00023013,2]
[363170543,1748607063077,-597.58,0.00023013,2]
[363170544,1748607063086,-591.81,0.00023013,2]
[363170545,1748607063096,-420.0,0.00023013,2]
[363170546,1748607063106,-420.0,0.00023013,2]
[363170547,1748607063115,-420.0,0.00023013,2]
[363170548,1748607063125,-471.86,0.00023013,2]
[363170549,1748607063135,-661.02,0.00023013,2]
[363170550,1748607063145,-454.59,0.00023013,2]
[363170551,1748607063154,-420.0,0.00023013,2]
[363170552,1748607063164,-420.0,0.00023013,2]
[363170553,1748607063178,-420.0,0.00023013,2]
[363170554,1748607063188,-499.07,0.00023013,2]
[363170555,1748607063198,-670.85,0.00023013,2]
[363170556,1748607063207,-420.0,0.00023013,2]
[363170557,1748607063217,-719.24,0.00023013,2]
[363170558,1748607063226,-420.0,0.00023013,2]
[363170559,1748607063236,-420.0,0.00023013,2]
[363170560,1748607063245,-420.0,0.00023013,2]
[363170561,1748607063255,-461.58,0.00023013,2]
[363170562,1748607063265,-420.0,0.00023013,2]
[363170563,1748607063274,-722.7,0.00023013,2]
[363170564,1748607063284,-420.0,0.00023013,2]
[363170565,1748607063293,-734.25,0.00023013,2]
[363170566,1748607063303,-420.0,0.00023013,2]
[363170567,1748607063313,-635.18,0.00023013,2]
[363170568,1748607063322,-420.0,0.00023013,2]
[363170569,1748607063331,-420.0,0.00023013,2]
[363170570,1748607063342,-420.0,0.00023013,2]
[363170571,1748607063351,-554.74,0.00023013,2]
[363170572,1748607063360,-420.0,0.00023013,2]
[363170573,1748607063369,-420.0,0.00023013,2]
[363170574,1748607063379,-611.52,0.00023013,2]
[363170575,1748607063390,-462.71,0.00023013,2]
[363170576,1748607063402,-420.0,0.00023013,2]
[363170577,1748607063412,-420.0,0.00023013,2]
[363170578,1748607063425,-420.0,0.00023013,2]
[363170579,1748607063435,-420.0,0.00023013,2]
[363170580,1748607063445,-1188.93,0.00023013,2]
[363170581,1748607063454,-420.0,0.00023013,2]
[363170582,1748607063464,-891.62,0.00023013,2]
[363170583,1748607063474,-605.19,0.00023013,2]
[363170584,1748607063483,-542.57,0.00023013,2]
[363170585,1748607063492,-806.97,0.00023013,2]
[363170586,1748607063501,-915.09,0.00023013,2]
[363170587,1748607063511,-420.0,0.00023013,2]
[363170588,1748607063521,-420.0,0.00023013,2]
[363170589,1748607063530,-420.0,0.00023013,2]
[363170590,1748607063539,-561.74,0.00023013,2]
[363170591,1748607063549,-420.0,0.00023013,2]
[363170592,1748607063558,-420.0,0.00023013,2]
[363170593,1748607063568,-830.32,0.00023013,2]
[363170594,1748607063578,-420.0,0.00023013,2]
[363170595,1748607063587,-420.0,0.00023013,2]
[363170596,1748607063596,-490.85,0.00023013,2]
[363170597,1748607063606,-420.0,0.00023013,2]
[363170598,1748607063616,-420.0,0.00023013,2]
[363170599,1748607063627,-420.0,0.00023013,2]
[363170600,1748607063636,-1423.64,0.00023013,2]
[363170601,1748607063646,-420.0,0.00023013,2]
[363170602,1748607063660,-555.69,0.00023013,2]
[363170603,1748607063671,-420.0,0.00023013,2]
[363170604,1748607063681,-1024.44,0.00023013,2]
[363170605,1748607063691,-1024.4,0.00023013,2]
[363170606,1748607063701,-828.95,0.00023013,2]
[363170607,1748607063711,-666.43,0.00023013,2]
[363170608,1748607063721,-420.0,0.00023013,2]
[363170609,1748607063731,-843.71,0.00023013,2]
[363170610,1748607063742,-86926.41,0.00023013,2]
[363170611,1748607063752,-705.97,0.00023013,2]
[363170612,1748607063762,-420.0,0.00023013,2]
[363170613,1748607063772,-420.0,0.00023013,2]
[363170614,1748607063781,-420.0,0.00023013,2]
[363170615,1748607063791,-1845.55,0.00023013,2]
[363170616,1748607063801,-444.53,0.00023013,2]
[363170617,1748607063812,-476.13,0.00023013,2]
[363170618,1748607063821,-2157.65,0.00023013,2]
[363170619,1748607063831,-822.98,0.00023013,2]
[363170620,1748607063841,-420.0,0.00023013,2]
[363170621,1748607063850,-1603.7,0.00023013,2]
[363170622,1748607063860,-447.93,0.00023013,2]
[363170623,1748607063870,-420.0,0.00023013,2]
[363170624,1748607063880,-980.59,0.00023013,2]
[363170625,1748607063890,-1723.19,0.00023013,2]
[363170626,1748607063900,-983.82,0.00023013,2]
[363170627,1748607063909,-511.09,0.00023013,2]
[363170628,1748607063920,-420.0,0.00023013,2]
[363170629,1748607063930,-420.0,0.00023013,2]
[363170630,1748607063939,-1122.49,0.00023013,2]
[363170631,1748607063949,-420.0,0.00023013,2]
[363170632,1748607063959,-2217.7,0.00023013,2]
[363170633,1748607063969,-420.0,0.00023013,2]
[363170634,1748607063979,-1063.81,0.00023013,2]
[363170635,1748607063988,-6717.82,0.00023013,2]
[363170636,1748607063998,-691.37,0.00023013,2]
[363170637,1748607064007,-1317.38,0.00023013,2]
[363170638,1748607064016,-1372.57,0.00023013,2]
[363170639,1748607064026,-420.0,0.00023013,2]
[363170640,1748607064036,-7535.87,0.00023013,2]
[363170641,1748607064046,-2685.86,0.00023013,2]
[363170642,1748607064056,-2380.77,0.00023013,2]
[363170643,1748607064065,-420.0,0.00023013,2]
[363170644,1748607064075,-2507.78,0.00023013,2]
[363170645,1748607064084,-649.68,0.00023013,2]
[363170646,1748607064093,-5187.95,0.00023013,2]
[363170647,1748607064102,-2012.28,0.00023013,2]
[363170648,1748607064112,-689.56,0.00023013,2]
[363170649,1748607064122,-927.66,0.00023013,2]
[363170650,1748607064132,-658.91,0.00023013,2]
[363170651,1748607064141,-3885.76,0.00023013,2]
[363170652,1748607064151,-603.91,0.00023013,2]
[363170653,1748607064162,-911.24,0.00023013,2]
[363170654,1748607064176,-6681.81,0.00023013,2]
[363170655,1748607064187,-932.04,0.00023013,2]
[363170656,1748607064198,-492.89,0.00023013,2]
[363170657,1748607064208,-646.35,0.00023013,2]
[363170658,1748607064219,-1220.31,0.00023013,2]
[363170659,1748607064230,-939.98,0.00023013,2]
[363170660,1748607064241,-420.0,0.00023013,2]
[363170661,1748607064251,-420.0,0.00023013,2]
[363170662,1748607064261,-1108.35,0.00023013,2]
[363170663,1748607064271,-3430.82,0.00023013,2]
[363170664,1748607064281,-420.0,0.00023013,2]
[363170665,1748607064292,-9207.29,0.00023013,2]
[363170666,1748607064303,-420.0,0.00023013,2]
[363170667,1748607064313,-2205.41,0.00023013,2]
[363170668,1748607064322,-575.48,0.00023013,2]
[363170669,1748607064332,-887.03,0.00023013,2]
[363170670,1748607064341,-420.0,0.00023013,2]
[363170671,1748607064351,-420.0,0.00023013,2]
[363170672,1748607064362,-7187.75,0.00023013,2]
[363170673,1748607064372,-420.0,0.00023013,2]
[363170674,1748607064382,-737.14,0.00023013,2]
[363170675,1748607064392,-586.97,0.00023013,2]
[363170676,1748607064404,-720.56,0.00023013,2]
[363170677,1748607064414,-481.84,0.00023013,2]
[363170678,1748607064428,-420.0,0.00023013,2]
[363170679,1748607064437,-1809.99,0.00023013,2]
[363170680,1748607064447,-480.85,0.00023013,2]
[363170681,1748607064457,-2301.8,0.00023013,2]
[363170682,1748607064467,-1126.66,0.00023013,2]
[363170683,1748607064478,-297.55843833,0.00023013,2]
[363170684,1748607064488,-1133.39,0.00023013,2]
[363170685,1748607064497,-1016.52,0.00023013,2]
[363170686,1748607064508,-420.0,0.00023013,2]
[363170687,1748607064517,-7056.8,0.00023013,2]
[363170688,1748607064527,-2797.49,0.00023013,2]
[363170689,1748607064537,-641.25,0.00023013,2]
[363170690,1748607064547,-568.14,0.00023013,2]
[363170691,1748607064557,-761.33,0.00023013,2]
[363170692,1748607064567,-420.0,0.00023013,2]
[363170693,1748607064577,-482.24,0.00023013,2]
[363170694,1748607064587,-420.0,0.00023013,2]
[363170695,1748607064597,-420.0,0.00023013,2]
[363170696,1748607064607,-458.08,0.00023013,2]
[363170697,1748607064617,-1729.68,0.00023013,2]
[363170698,1748607064627,-804.22,0.00023013,2]
[363170699,1748607064637,-420.0,0.00023013,2]
[363170700,1748607064647,-665.18,0.00023013,2]
[363170701,1748607064658,-1614.28,0.00023013,2]
[363170702,1748607064676,-981.01,0.00023013,2]
[363170703,1748607064686,-983.07,0.00023013,2]
[363170704,1748607064697,-813.82,0.00023013,2]
[363170705,1748607064707,-873.87,0.00023013,2]
[363170706,1748607064717,-4813.38,0.00023013,2]
[363170707,1748607064727,-1632.65,0.00023013,2]
[363170708,1748607064738,-472.8,0.00023013,2]
[363170709,1748607064749,-420.0,0.00023013,2]
[363170710,1748607064758,-5108.33,0.00023013,2]
[363170711,1748607064769,-457.6,0.00023013,2]
[363170712,1748607064779,-2974.9,0.00023013,2]
[363170713,1748607064789,-613.72,0.00023013,2]
[363170714,1748607064799,-420.0,0.00023013,2]
[363170715,1748607064809,-1922.14,0.00023013,2]
[363170716,1748607064819,-2797.81,0.00023013,2]
[363170717,1748607064829,-778.71,0.00023013,2]
[363170718,1748607064839,-892.25,0.00023013,2]
[363170719,1748607064849,-705.71,0.00023013,2]
[363170720,1748607064859,-1674.65,0.00023013,2]
[363170721,1748607064869,-1389.57,0.00023013,2]
[363170722,1748607064879,-684.93,0.00023013,2]
[363170723,1748607064889,-1255.87,0.00023013,2]
[363170724,1748607064899,-283.95541356,0.00023013,2]
[363170725,1748607064909,-2470.47,0.00023013,2]
[363170726,1748607064919,-420.0,0.00023013,2]
[363170727,1748607064930,-1338.59,0.00023013,2]
[363170728,1748607064940,-1182.57,0.00023013,2]
[363170729,1748607064950,-556.75,0.00023013,2]
[363170730,1748607064960,-420.0,0.00023013,2]
[363170731,1748607064970,-2489.28,0.00023013,2]
[363170732,1748607064980,-420.0,0.00023013,2]
[363170733,1748607064990,-490.55,0.00023013,2]
[363170734,1748607065000,-2169.61,0.00023013,2]
[363170735,1748607065010,-718.83,0.00023013,2]
[363170736,1748607065020,-420.0,0.00023013,2]
[363170737,1748607065030,-921.22,0.00023013,2]
[363170738,1748607065040,-2061.41,0.00023013,2]
[363170739,1748607065050,-420.0,0.00023013,2]
[363170740,1748607065060,-3184.52,0.00023013,2]
[363170741,1748607065070,-789.16,0.00023013,2]
[363170742,1748607065080,-423.48,0.00023013,2]
[363170743,1748607065090,-420.0,0.00023013,2]
[363170744,1748607065100,-2835.89,0.00023013,2]
[363170745,1748607065109,-420.0,0.00023013,2]
[363170746,1748607065119,-567.0,0.00023013,2]
[363170747,1748607065129,-1177.33,0.00023013,2]
[363170748,1748607065138,-2667.69,0.00023013,2]
[363170749,1748607065148,-420.0,0.00023013,2]
[363170750,1748607065159,-2466.9,0.00023013,2]
[363170751,1748607065172,-1946.37,0.00023013,2]
[363170752,1748607065183,-648.5,0.00023013,2]
[363170753,1748607065193,-1659.75,0.00023013,2]
[363170754,1748607065203,-678.29,0.00023013,2]
[363170755,1748607065213,-524.41,0.00023013,2]
[363170756,1748607065223,-733.52,0.00023013,2]
[363170757,1748607065234,-1782.45,0.00023013,2]
[363170758,1748607065244,-1513.35,0.00023013,2]
[363170759,1748607065254,-747.44,0.00023013,2]
[363170760,1748607065264,-445.41,0.00023013,2]
[363170761,1748607065274,-420.0,0.00023013,2]
[363170762,1748607065283,-693.81,0.00023013,2]
[363170763,1748607065293,-925.56,0.00023013,2]
[363170764,1748607065303,-1866.18,0.00023013,2]
[363170765,1748607065313,-859.59,0.00023013,2]
[363170766,1748607065323,-524.76,0.00023013,2]
[363170767,1748607065333,-420.0,0.00023013,2]
[363170768,1748607065343,-420.0,0.00023013,2]
[363170769,1748607065351,-7524.05,0.00023013,2]
[363170770,1748607065361,-420.0,0.00023013,2]
[363170771,1748607065370,-455.3,0.00023013,2]
[363170772,1748607065379,-448.17,0.00023013,2]
[363170773,1748607065389,-478.5,0.00023013,2]
[363170774,1748607065399,-1100.99,0.00023013,2]
[363170775,1748607065408,-6055.27,0.00023013,2]
[363170776,1748607065417,-420.0,0.00023013,2]
[363170777,1748607065433,-937.48,0.00023013,2]
[363170778,1748607065442,-1109.15,0.00023013,2]
[363170779,1748607065454,-564.55,0.00023013,2]
[363170780,1748607065464,-3354.03,0.00023013,2]
[363170781,1748607065473,-7876.53,0.00023013,2]
[363170782,1748607065481,-420.0,0.00023013,2]
[363170783,1748607065491,-428.1,0.00023013,2]
[363170784,1748607065500,-640.66,0.00023013,2]
[363170785,1748607065510,-628.09,0.00023013,2]
[363170786,1748607065519,-732.75,0.00023013,2]
[363170787,1748607065528,-802.35,0.00023013,2]
[363170788,1748607065538,-420.0,0.00023013,2]
[363170789,1748607065548,-4476.09,0.00023013,2]
[363170790,1748607065557,-420.0,0.00023013,2]
[363170791,1748607065567,-1010.4,0.00023013,2]
[363170792,1748607065578,-954.45,0.00023013,2]
[363170793,1748607065587,-830.92,0.00023013,2]
[363170794,1748607065598,-834.55,0.00023013,2]
[363170795,1748607065608,-1074.88,0.00023013,2]
[363170796,1748607065618,-533.45,0.00023013,2]
[363170797,1748607065627,-715.52,0.00023013,2]
[363170798,1748607065638,-659.25,0.00023013,2]
[363170799,1748607065649,-881.61,0.00023013,2]
[363170800,1748607065663,-420.0,0.00023013,2]
[363170801,1748607065676,-1646.34,0.00023013,2]
[363170802,1748607065686,-420.0,0.00023013,2]
[363170803,1748607065697,-5188.37,0.00023013,2]
[363170804,1748607065707,-420.0,0.00023013,2]
[363170805,1748607065717,-724.95,0.00023013,2]
[363170806,1748607065727,-4441.46,0.00023013,2]
[363170807,1748607065738,-1045.74,0.00023013,2]
[363170808,1748607065748,-420.0,0.00023013,2]
[363170809,1748607065760,-3401.09,0.00023013,2]
[363170810,1748607065770,-1787.46,0.00023013,2]
[363170811,1748607065781,-821.68,0.00023013,2]
[363170812,1748607065792,-1393.87,0.00023013,2]
[363170813,1748607065802,-420.0,0.00023013,2]
[363170814,1748607065812,-631.21,0.00023013,2]
[363170815,1748607065823,-1135.27,0.00023013,2]
[363170816,1748607065835,-948.4,0.00023013,2]
[363170817,1748607065847,-620.79,0.00023013,2]
[363170818,1748607065858,-420.0,0.00023013,2]
[363170819,1748607065869,-874.48,0.00023013,2]
[363170820,1748607065879,-528.89,0.00023013,2]
[363170821,1748607065890,-420.0,0.00023013,2]
[363170822,1748607065900,-420.0,0.00023013,2]
[363170823,1748607065910,-160.0,0.00023014,7]
[363170824,1748607065924,-500.0,0.00023021,2]
[363170825,1748607065934,-168.31,0.00023028,2]
[363170826,1748607065944,-215.0738,0.00023064,2]
[363170827,1748607065954,-505.34091603,0.00023073,2]
[363170828,1748607065964,-431.73927023,0.00023096,2]
[363170829,1748607065975,-1099.19390683,0.00023141,8]
[363170830,1748607065985,-1680.0,0.00023236,2]
[363170831,1748607065995,-156.587,0.00023273,2]
[363170832,1748607066005,-431.73927023,0.00023278,2]
[363170833,1748607066015,-22510.63,0.00023286,2]
[363170834,1748607066025,-1383.96,0.00023286,2]
[363170835,1748607066035,-1043.78,0.00023286,2]
[363170836,1748607066045,-5846.34,0.00023286,2]
[363170837,1748607066056,-881.68,0.00023286,2]
[363170838,1748607066066,-1371.68,0.00023286,2]
[363170839,1748607066077,-529.27,0.00023286,2]
[363170840,1748607066087,-14492.09,0.00023286,2]
[363170841,1748607066097,-593.61,0.00023286,2]
[363170842,1748607066107,-2219.46,0.00023286,2]
[363170843,1748607066117,-1480.09,0.00023286,2]
[363170844,1748607066127,-1225.13,0.00023286,2]
[363170845,1748607066138,-530.83,0.00023286,2]
[363170846,1748607066148,-480.91,0.00023287,2]
[363170847,1748607066158,-420.0,0.00023287,2]
[363170848,1748607066168,-420.0,0.00023287,2]
[363170849,1748607066181,-527.46,0.00023287,2]
[363170850,1748607066191,-420.0,0.00023287,2]
[363170851,1748607066201,-420.0,0.00023287,2]
[363170852,1748607066212,-420.0,0.00023287,2]
[363170853,1748607066223,-420.0,0.00023287,2]
[363170854,1748607066233,-424.96,0.00023287,2]
[363170855,1748607066243,-420.0,0.00023287,2]
[363170856,1748607066252,-321.36531117,0.00023287,2]
[363170857,1748607066263,-420.0,0.00023287,2]
[363170858,1748607066273,-718.13,0.00023287,2]
[363170859,1748607066283,-420.0,0.00023287,2]
[363170860,1748607066293,-420.0,0.00023287,2]
[363170861,1748607066303,-420.0,0.00023287,2]
[363170862,1748607066313,-420.0,0.00023287,2]
[363170863,1748607066323,-420.0,0.00023287,2]
[363170864,1748607066333,-866.18,0.00023287,2]
[363170865,1748607066343,-420.0,0.00023287,2]
[363170866,1748607066352,-420.0,0.00023287,2]
[363170867,1748607066363,-420.0,0.00023287,2]
[363170868,1748607066373,-542.03,0.00023287,2]
[363170869,1748607066383,-420.0,0.00023287,2]
[363170870,1748607066393,-420.0,0.00023287,2]
[363170871,1748607066403,-541.7,0.00023287,2]
[363170872,1748607066413,-420.0,0.00023287,2]
[363170873,1748607066427,-420.0,0.00023287,2]
[363170874,1748607066436,-420.0,0.00023287,2]
[363170875,1748607066446,-741.67,0.00023287,2]
[363170876,1748607066456,-420.0,0.00023287,2]
[363170877,1748607066466,-420.0,0.00023287,2]
[363170878,1748607066475,-420.0,0.00023287,2]
[363170879,1748607066485,-1824.87,0.00023287,2]
[363170880,1748607066496,-420.0,0.00023287,2]
[363170881,1748607066506,-420.0,0.00023287,2]
[363170882,1748607066516,-607.61,0.00023287,2]
[363170883,1748607066525,-420.0,0.00023287,2]
[363170884,1748607066534,-420.0,0.00023287,2]
[363170885,1748607066543,-420.0,0.00023287,2]
[363170886,1748607066552,-420.0,0.00023287,2]
[363170887,1748607066561,-420.0,0.00023287,2]
[363170888,1748607066571,-420.0,0.00023287,2]
[363170889,1748607066580,-642.81,0.00023287,2]
[363170890,1748607066589,-420.0,0.00023287,2]
[363170891,1748607066599,-688.21,0.00023287,2]
[363170892,1748607066609,-468.61,0.00023287,2]
[363170893,1748607066619,-420.0,0.00023287,2]
[363170894,1748607066633,-420.0,0.00023287,2]
[363170895,1748607066643,-420.0,0.00023287,2]
[363170896,1748607066655,-681.76,0.00023287,2]
[363170897,1748607066665,-467.99,0.00023287,2]
[363170898,1748607066678,-420.0,0.00023287,2]
[363170899,1748607066688,-420.0,0.00023287,2]
[363170900,1748607066913,-570.81,0.00023287,2]
[363170901,1748607066933,-420.0,0.00023287,2]
[363170902,1748607066943,-848.07,0.00023287,2]
[363170903,1748607066953,-420.0,0.00023287,2]
[363170904,1748607066963,-492.25,0.00023287,2]
[363170905,1748607066973,-554.15,0.00023287,2]
[363170906,1748607066983,-754.18,0.00023287,2]
[363170907,1748607066993,-420.0,0.00023287,2]
[363170908,1748607067003,-420.0,0.00023287,2]
[363170909,1748607067012,-420.0,0.00023287,2]
[363170910,1748607067022,-420.0,0.00023287,2]
[363170911,1748607067032,-420.0,0.00023287,2]
[363170912,1748607067042,-488.67,0.00023287,2]
[363170913,1748607067053,-420.0,0.00023287,2]
[363170914,1748607067063,-550.32,0.00023287,2]
[363170915,1748607067073,-420.0,0.00023287,2]
[363170916,1748607067083,-475.66,0.00023287,2]
[363170917,1748607067093,-1204.07,0.00023287,2]
[363170918,1748607067103,-420.0,0.00023287,2]
[363170919,1748607067113,-420.0,0.00023287,2]
[363170920,1748607067123,-983.71,0.00023287,2]
[363170921,1748607067133,-665.55,0.00023287,2]
[363170922,1748607067143,-420.0,0.00023287,2]
[363170923,1748607067152,-420.0,0.00023287,2]
[363170924,1748607067164,-420.0,0.00023287,2]
[363170925,1748607067176,-420.0,0.00023287,2]
[363170926,1748607067186,-430.7,0.00023287,2]
[363170927,1748607067195,-420.0,0.00023287,2]
[363170928,1748607067205,-420.0,0.00023287,2]
[363170929,1748607067215,-420.0,0.00023287,2]
[363170930,1748607067224,-420.0,0.00023287,2]
[363170931,1748607067234,-420.0,0.00023287,2]
[363170932,1748607067244,-594.66,0.00023287,2]
[363170933,1748607067253,-437.84,0.00023287,2]
[363170934,1748607067262,-878.74,0.00023287,2]
[363170935,1748607067271,-250.0,0.00023287,2]
[363170936,1748607067280,-815.54,0.00023287,2]
[363170937,1748607067290,-420.0,0.00023287,2]
[363170938,1748607067299,-420.0,0.00023287,2]
[363170939,1748607067308,-420.0,0.00023287,2]
[363170940,1748607067317,-420.0,0.00023287,2]
[363170941,1748607067328,-420.0,0.00023287,2]
[363170942,1748607067337,-462.0,0.00023287,2]
[363170943,1748607067347,-420.0,0.00023287,2]
[363170944,1748607067356,-904.21,0.00023287,2]
[363170945,1748607067365,-420.0,0.00023287,2]
[363170946,1748607067374,-420.0,0.00023287,2]
[363170947,1748607067383,-279.81649982,0.00023287,2]
[363170948,1748607067393,-561.50561382,0.00023287,2]
[363170949,1748607067403,-476.26,0.00023287,2]
[363170950,1748607067412,-427.79,0.00023287,2]
[363170951,1748607067424,-460.54,0.00023287,2]
[363170952,1748607067434,-420.0,0.00023287,2]
[363170953,1748607067443,-420.0,0.00023287,2]
[363170954,1748607067452,-420.0,0.00023287,2]
[363170955,1748607067461,-470.25166582,0.00023287,2]
[363170956,1748607067470,-420.0,0.00023287,2]
[363170957,1748607067479,-844.76,0.00023287,2]
[363170958,1748607067487,-1173.07,0.00023287,2]
[363170959,1748607067494,-420.0,0.00023287,2]
[363170960,1748607067501,-420.0,0.00023287,2]
[363170961,1748607067509,-795.92,0.00023287,2]
[363170962,1748607067519,-792.64,0.00023287,2]
[363170963,1748607067527,-600.66,0.00023287,2]
[363170964,1748607067534,-420.0,0.00023287,2]
[363170965,1748607067542,-783.75,0.00023287,2]
[363170966,1748607067550,-420.0,0.00023287,2]
[363170967,1748607067558,-431.78,0.00023287,2]
[363170968,1748607067567,-420.0,0.00023287,2]
[363170969,1748607067574,-489.86,0.00023287,2]
[363170970,1748607067583,-420.0,0.00023287,2]
[363170971,1748607067592,-420.0,0.00023287,2]
[363170972,1748607067600,-1096.19,0.00023287,2]
[363170973,1748607067607,-420.0,0.00023287,2]
[363170974,1748607067616,-420.0,0.00023287,2]
[363170975,1748607067626,-505.65,0.00023287,2]
[363170976,1748607067635,-899.73,0.00023287,2]
[363170977,1748607067644,-420.0,0.00023287,2]
[363170978,1748607067655,-711.78,0.00023287,2]
[363170979,1748607067665,-420.0,0.00023287,2]
[363170980,1748607067680,-1058.99,0.00023287,2]
[363170981,1748607067692,-420.0,0.00023287,2]
[363170982,1748607067703,-420.0,0.00023287,2]
[363170983,1748607067713,-881.85,0.00023287,2]
[363170984,1748607067724,-420.0,0.00023287,2]
[363170985,1748607067739,-420.0,0.00023287,2]
[363170986,1748607067751,-420.0,0.00023287,2]
[363170987,1748607067761,-420.0,0.00023287,2]
[363170988,1748607067770,-501.47,0.00023287,2]
[363170989,1748607067779,-420.0,0.00023287,2]
[363170990,1748607067790,-897.81,0.00023287,2]
[363170991,1748607067799,-424.07,0.00023287,2]
[363170992,1748607067808,-420.0,0.00023287,2]
[363170993,1748607067817,-420.0,0.00023287,2]
[363170994,1748607067826,-475.28,0.00023287,2]
[363170995,1748607067836,-543.28,0.00023287,2]
[363170996,1748607067846,-840.36,0.00023287,2]
[363170997,1748607067856,-420.0,0.00023287,2]
[363170998,1748607067866,-900.0,0.00023287,2]
[363170999,1748607067877,-420.0,0.00023287,2]
[363171000,1748607067886,-420.0,0.00023287,2]
[363171001,1748607067895,-420.0,0.00023287,2]
[363171002,1748607067905,-420.0,0.00023287,2]
[363171003,1748607067914,-1281.34,0.00023287,2]
[363171004,1748607067928,-420.0,0.00023287,2]